[Event "HUN-ch U8-U18 2019"]
[Site "Balatonlelle"]
[Date "2019.06.21"]
[Round "2.33"]
[White "Biro, Daniel"]
[Black "Karacsonyi, Bank"]
[Result "0-1"]
[ECO "E67"]
[WhiteElo "1343"]
[BlackElo "1529"]
[Annotator "NA"]
[PlyCount "96"]
[EventDate "2019.06.21"]
[EventType "swiss"]
[EventCountry "HUN"]
[SourceTitle "playchess.com"]
[Source "ChessBase"]
[SourceQuality "1"]
[TimeControl "40/5400+30:1800+30"]

1. Nf3 {[%emt 0:00:01]} Nf6 {[%emt 0:00:10]} 2. g3 {[%emt 0:00:34]} g6 {[%emt 0:00:11]} 3. Bg2 {[%emt 0:00:30]} Bg7 {[%emt 0:00:11]} 4. O-O {[%emt 0:00:46]} d6 {[%emt 0:00:18]} 5. d4 {[%emt 0:01:15]} O-O {[%emt 0:00:19]} 6. c4 {[%emt 0:00:48]} Nbd7 {[%emt 0:00:09]} 7. Nc3 {[%emt 0:01:13]} e5 {[%emt 0:00:05]} 8. dxe5 {[%emt 0:03:05]} dxe5 {[%emt 0:00:10]} 9. Qc2 {[%emt 0:01:05]} Ne8 {[%emt 0:00:58]} 10. Rd1 {[%emt 0:07:49]} Nd6 {[%emt 0:02:03]} 11. b3 {[%emt 0:04:13]} f5 {[%emt 0:00:44]} 12. Bg5 {[%emt 0:05:01]} Qe8 {[%emt 0:00:32]} 13. Nd5 {[%emt 0:03:33]} e4 {[%emt 0:02:45]} 14. Nxc7 {[%emt 0:06:44]} Qf7 {[%emt 0:01:13]} 15. Rac1 {[%emt 0:04:42]} exf3 {[%emt 0:03:26]} 16. Bxf3 {[%emt 0:00:22]} Ne4 {[%emt 0:00:10]} 17. Bxe4 {[%emt 0:09:29]} fxe4 {[%emt 0:00:08]} 18. Nxa8 {[%emt 0:02:58]} Qxf2+ {[%emt 0:05:52]} 19. Kh1 {[%emt 0:00:09]} Qf5 {[%emt 0:00:18]} 20. Bf4 {[%emt 0:07:31]} Ne5 {[%emt 0:01:54]} 21. Nc7 {[%emt 0:03:11]} Ng4 {[%emt 0:01:11]} 22. Rf1 {[%emt 0:04:12]} Qh5 {[%emt 0:00:46]} 23. h4 {[%emt 0:01:20]} Rxf4 {[%emt 0:03:30]} 24. Rxf4 {[%emt 0:03:28]} g5 {[%emt 0:00:10]} 25. Qxe4 {[%emt 0:00:57]} gxf4 {[%emt 0:00:41]} 26. Qd5+ {[%emt 0:02:24]} Qxd5+ {[%emt 0:00:15]} 27. Nxd5 {[%emt 0:00:08]} Kf7 {[%emt 0:00:30]} 28. Nxf4 {[%emt 0:00:49]} Ne3 {[%emt 0:01:09]} 29. Nd5 {[%emt 0:03:12]} Nf5 {[%emt 0:01:35]} 30. Rf1 {[%emt 0:01:06]} Kg6 {[%emt 0:00:22]} 31. Nf4+ {[%emt 0:01:06]} Kh6 {[%emt 0:00:15]} 32. Kh2 {[%emt 0:03:45]} Ne3 {[%emt 0:00:09]} 33. Rf3 {[%emt 0:01:07]} Ng4+ {[%emt 0:00:07]} 34. Kg2 {[%emt 0:01:31]} Bf5 {[%emt 0:00:10]} 35. Kh3 {[%emt 0:03:53]} Ne5+ {[%emt 0:00:20]} 36. Kg2 {[%emt 0:00:42]} Nxf3 {[%emt 0:00:05]} 37. exf3 {[%emt 0:00:11]} Bb1 {[%emt 0:00:05]} 38. g4 {[%emt 0:00:23]} Be5 {[%emt 0:00:15]} 39. g5+ {[%emt 0:01:10]} Kg7 {[%emt 0:00:04]} 40. Ne6+ {[%emt 0:00:00]} Kg8 {[%emt 0:00:00]} 41. f4 {[%emt 0:02:14]} Bd6 {[%emt 0:00:46]} 42. c5 {[%emt 0:00:40]} Be7 {[%emt 0:00:12]} 43. a3 {[%emt 0:00:22]} Bf5 {[%emt 0:00:11]} 44. Nc7 {[%emt 0:01:20]} Bxc5 {[%emt 0:00:13]} 45. b4 {[%emt 0:00:42]} Bd6 {[%emt 0:00:06]} 46. Nb5 {[%emt 0:00:57]} Bxf4 {[%emt 0:00:18]} 47. Nxa7 {[%emt 0:01:05]} Bc1 {[%emt 0:00:06]} 48. a4 {[%emt 0:00:40]} Bc2 {[%emt 0:00:09]} 0-1

[Event "HUN-ch U8-U18 2019"]
[Site "Balatonlelle"]
[Date "2019.06.21"]
[Round "2.34"]
[White "Megyeri, Martin"]
[Black "Varga, Boldizsar"]
[Result "1/2-1/2"]
[ECO "C54"]
[WhiteElo "1520"]
[BlackElo "1804"]
[Annotator "NA"]
[PlyCount "59"]
[EventDate "2019.06.21"]
[EventType "swiss"]
[EventCountry "HUN"]
[SourceTitle "playchess.com"]
[Source "ChessBase"]
[SourceQuality "1"]
[TimeControl "40/5400+30:1800+30"]

1. e4 {[%emt 0:00:06]} e5 {[%emt 0:00:43]} 2. Nf3 {[%emt 0:00:07]} Nc6 {[%emt 0:01:03]} 3. Bc4 {[%emt 0:00:17]} Bc5 {[%emt 0:00:23]} 4. c3 {[%emt 0:00:11]} Nf6 {[%emt 0:01:48]} 5. d4 {[%emt 0:00:08]} exd4 {[%emt 0:02:06]} 6. cxd4 {[%emt 0:00:14]} Bb4+ {[%emt 0:01:01]} 7. Nc3 {[%emt 0:00:21]} Nxe4 {[%emt 0:02:58]} 8. O-O {[%emt 0:00:14]} Nxc3 9. bxc3 {[%emt 0:00:14]} Bxc3 {[%emt 0:02:03]} 10. Qb3 {[%emt 0:00:29]} O-O {[%emt 0:06:05]} 11. Qxc3 {[%emt 0:00:12]} d5 {[%emt 0:00:27]} 12. Bb3 {[%emt 0:00:35]} Re8 {[%emt 0:02:48]} 13. Ba3 {[%emt 0:01:06]} Bg4 {[%emt 0:04:16]} 14. Ne5 {[%emt 0:02:43]} Nxe5 {[%emt 0:00:56]} 15. dxe5 {[%emt 0:00:14]} d4 {[%emt 0:01:37]} 16. Qg3 {[%emt 0:01:15]} Bh5 {[%emt 0:01:34]} 17. Bb2 {[%emt 0:01:20]} c5 {[%emt 0:02:43]} 18. f4 {[%emt 0:01:55]} Rc8 {[%emt 0:03:33]} 19. Bc2 {[%emt 0:00:53]} c4 {[%emt 0:01:24]} 20. Qh3 {[%emt 0:01:13]} Qb6 {[%emt 0:05:08]} 21. Bxh7+ {[%emt 0:04:21]} Kxh7 {[%emt 0:00:49]} 22. Qxh5+ {[%emt 0:01:06]} Kg8 {[%emt 0:00:27]} 23. Ba3 {[%emt 0:01:36]} d3+ {[%emt 0:02:09]} 24. Kh1 {[%emt 0:00:09]} Red8 {[%emt 0:01:47]} 25. Rf3 {[%emt 0:02:41]} Qh6 {[%emt 0:02:52]} 26. Qxh6 {[%emt 0:04:53]} gxh6 {[%emt 0:00:13]} 27. Rd1 {[%emt 0:05:08]} d2 {[%emt 0:01:10]} 28. Rc3 {[%emt 0:02:09]} a5 {[%emt 0:00:57]} 29. Bd6 {[%emt 0:00:22]} Rxd6 {[%emt 0:04:40]} 30. Kg1 {[%emt 0:02:27]} 1/2-1/2

[Event "HUN-ch U8-U18 2019"]
[Site "Balatonlelle"]
[Date "2019.06.21"]
[Round "2.35"]
[White "Csernyik, Mark"]
[Black "Kerekes, Laszlo Fulop"]
[Result "1-0"]
[ECO "C55"]
[WhiteElo "1704"]
[BlackElo "1320"]
[Annotator "NA"]
[PlyCount "69"]
[EventDate "2019.06.21"]
[EventType "swiss"]
[EventCountry "HUN"]
[SourceTitle "playchess.com"]
[Source "ChessBase"]
[SourceQuality "1"]
[TimeControl "40/5400+30:1800+30"]

1. e4 {[%emt 0:00:10]} e5 {[%emt 0:00:11]} 2. Nf3 {[%emt 0:00:04]} Nc6 {[%emt 0:00:18]} 3. d4 {[%emt 0:00:12]} exd4 {[%emt 0:00:12]} 4. Bc4 {[%emt 0:00:11]} Nf6 {[%emt 0:00:41]} 5. e5 {[%emt 0:00:43]} d5 {[%emt 0:00:21]} 6. Bb5 {[%emt 0:00:21]} Ne4 {[%emt 0:01:25]} 7. Nxd4 {[%emt 0:00:25]} Bd7 {[%emt 0:00:34]} 8. Bxc6 {[%emt 0:00:28]} Bxc6 {[%emt 0:00:28]} 9. Be3 {[%emt 0:01:20]} Qd7 {[%emt 0:01:53]} 10. O-O {[%emt 0:02:03]} Be7 {[%emt 0:00:37]} 11. f4 {[%emt 0:01:16]} O-O {[%emt 0:01:30]} 12. Nd2 {[%emt 0:02:47]} f5 {[%emt 0:01:22]} 13. Nxe4 {[%emt 0:01:39]} dxe4 {[%emt 0:00:35]} 14. Qe2 {[%emt 0:00:52]} Bc5 {[%emt 0:01:10]} 15. Rad1 {[%emt 0:02:18]} Bxd4 {[%emt 0:01:10]} 16. Bxd4 {[%emt 0:04:06]} Qe6 {[%emt 0:01:01]} 17. b3 {[%emt 0:01:14]} a6 {[%emt 0:00:58]} 18. c4 {[%emt 0:01:35]} b5 {[%emt 0:01:07]} 19. Qc2 {[%emt 0:02:05]} Qe8 {[%emt 0:01:36]} 20. Rc1 {[%emt 0:00:44]} Qg6 {[%emt 0:01:25]} 21. Rf2 {[%emt 0:04:47]} Rfd8 {[%emt 0:01:04]} 22. Rd1 {[%emt 0:04:23]} Rd7 {[%emt 0:01:33]} 23. Rfd2 {[%emt 0:00:32]} Rad8 {[%emt 0:01:45]} 24. Be3 {[%emt 0:00:28]} Rd3 {[%emt 0:01:26]} 25. Rxd3 {[%emt 0:02:36]} Rxd3 {[%emt 0:00:54]} 26. cxb5 {[%emt 0:06:35]} Bxb5 {[%emt 0:02:55]} 27. Rxd3 {[%emt 0:01:12]} Bxd3 {[%emt 0:01:16]} 28. Qxc7 {[%emt 0:00:18]} Qg4 {[%emt 0:00:48]} 29. h3 {[%emt 0:02:10]} Qe2 {[%emt 0:02:29]} 30. Qc8+ {[%emt 0:03:29]} Kf7 {[%emt 0:00:59]} 31. Qxf5+ {[%emt 0:00:42]} Ke7 {[%emt 0:01:09]} 32. Bc5+ {[%emt 0:00:10]} Ke8 {[%emt 0:01:40]} 33. e6 {[%emt 0:02:23]} Qd1+ {[%emt 0:02:03]} 34. Kh2 {[%emt 0:00:15]} Qc2 {[%emt 0:02:13]} 35. Qf7+ 1-0

[Event "HUN-ch U8-U18 2019"]
[Site "Balatonlelle"]
[Date "2019.06.21"]
[Round "2.36"]
[White "Nagy, Levente"]
[Black "Toth, Rafael"]
[Result "1-0"]
[ECO "B02"]
[WhiteElo "2092"]
[BlackElo "1178"]
[Annotator "NA"]
[PlyCount "129"]
[EventDate "2019.06.21"]
[EventType "swiss"]
[EventCountry "HUN"]
[SourceTitle "playchess.com"]
[Source "ChessBase"]
[SourceQuality "1"]
[TimeControl "40/5400+30:1800+30"]

1. e4 {[%emt 0:00:01]} Nf6 {[%emt 0:00:09]} 2. Nc3 {[%emt 0:00:35]} d5 {[%emt 0:00:08]} 3. exd5 {[%emt 0:00:57]} Nxd5 {[%emt 0:00:11]} 4. Bc4 {[%emt 0:00:19]} e6 {[%emt 0:00:36]} 5. Qf3 {[%emt 0:01:44]} Nxc3 {[%emt 0:00:55]} 6. dxc3 {[%emt 0:00:40]} Bd6 {[%emt 0:01:18]} 7. Ne2 {[%emt 0:00:41]} O-O {[%emt 0:00:53]} 8. O-O {[%emt 0:01:03]} Nc6 {[%emt 0:00:31]} 9. Bf4 {[%emt 0:03:03]} Ne5 {[%emt 0:01:01]} 10. Bxe5 {[%emt 0:00:35]} Bxe5 {[%emt 0:00:40]} 11. Qe4 {[%emt 0:01:51]} Qf6 {[%emt 0:01:15]} 12. Bd3 {[%emt 0:02:00]} Qf5 {[%emt 0:00:56]} 13. Qh4 {[%emt 0:00:51]} Bf6 {[%emt 0:01:34]} 14. Qc4 {[%emt 0:02:22]} Qe5 {[%emt 0:01:42]} 15. Rad1 {[%emt 0:00:55]} b6 {[%emt 0:02:10]} 16. Rfe1 {[%emt 0:01:30]} Bb7 {[%emt 0:02:00]} 17. Ng3 {[%emt 0:01:08]} Qc5 {[%emt 0:03:37]} 18. Qg4 {[%emt 0:02:19]} Qg5 {[%emt 0:04:11]} 19. Qe2 {[%emt 0:03:01]} Rad8 {[%emt 0:04:39]} 20. Ba6 {[%emt 0:04:47]} Rxd1 {[%emt 0:02:12]} 21. Rxd1 {[%emt 0:00:19]} Bxa6 {[%emt 0:00:32]} 22. Qxa6 {[%emt 0:01:03]} Qa5 {[%emt 0:01:15]} 23. Qc4 {[%emt 0:01:14]} Rd8 {[%emt 0:01:09]} 24. Re1 {[%emt 0:02:03]} Qc5 {[%emt 0:01:53]} 25. Qg4 {[%emt 0:01:35]} Qg5 {[%emt 0:06:22]} 26. Qe4 {[%emt 0:02:05]} Rd5 {[%emt 0:02:18]} 27. Qa4 {[%emt 0:01:30]} g6 {[%emt 0:01:29]} 28. Qxa7 {[%emt 0:01:10]} Be5 {[%emt 0:01:18]} 29. Qa8+ {[%emt 0:00:59]} Rd8 {[%emt 0:02:14]} 30. Qe4 {[%emt 0:01:35]} Bxg3 {[%emt 0:03:20]} 31. hxg3 {[%emt 0:01:12]} Qf5 {[%emt 0:02:44]} 32. Qc6 {[%emt 0:01:26]} Qxc2 {[%emt 0:01:41]} 33. Qxc7 {[%emt 0:00:59]} Rd2 {[%emt 0:00:42]} 34. Qxb6 {[%emt 0:00:31]} Qxb2 {[%emt 0:00:33]} 35. Qxb2 {[%emt 0:00:56]} Rxb2 {[%emt 0:00:11]} 36. a4 {[%emt 0:00:02]} Ra2 {[%emt 0:01:08]} 37. Re4 {[%emt 0:00:34]} Ra3 {[%emt 0:00:35]} 38. Rc4 {[%emt 0:00:35]} Kg7 {[%emt 0:00:33]} 39. f4 {[%emt 0:00:49]} f5 {[%emt 0:00:35]} 40. Kf2 {[%emt 0:00:00]} Kf6 {[%emt 0:00:00]} 41. Ke3 {[%emt 0:01:25]} Ra2 {[%emt 0:01:11]} 42. Kf3 {[%emt 0:00:39]} Ke7 {[%emt 0:00:28]} 43. Rc7+ {[%emt 0:01:05]} Kd6 {[%emt 0:00:15]} 44. Rxh7 {[%emt 0:00:19]} Rxa4 {[%emt 0:00:21]} 45. Rh6 {[%emt 0:01:04]} Ra3 {[%emt 0:00:17]} 46. Rxg6 {[%emt 0:00:16]} Rxc3+ {[%emt 0:00:22]} 47. Kf2 {[%emt 0:00:04]} Rc2+ {[%emt 0:00:39]} 48. Kg1 {[%emt 0:00:13]} Rc1+ {[%emt 0:00:19]} 49. Kh2 {[%emt 0:00:06]} Rc8 {[%emt 0:00:50]} 50. g4 {[%emt 0:00:28]} Ke7 {[%emt 0:00:27]} 51. g5 {[%emt 0:01:00]} Rc3 {[%emt 0:01:14]} 52. Rg7+ {[%emt 0:01:25]} Kf8 {[%emt 0:04:41]} 53. Ra7 {[%emt 0:00:25]} Rd3 {[%emt 0:00:43]} 54. g6 {[%emt 0:00:16]} Rc3 {[%emt 0:01:18]} 55. g3 {[%emt 0:00:24]} Rc2+ {[%emt 0:00:16]} 56. Kh3 {[%emt 0:00:08]} Rc1 {[%emt 0:00:32]} 57. Kh4 {[%emt 0:00:09]} Rh1+ {[%emt 0:00:16]} 58. Kg5 {[%emt 0:00:05]} Rg1 {[%emt 0:01:07]} 59. Kf6 {[%emt 0:00:11]} Ke8 {[%emt 0:00:58]} 60. g7 {[%emt 0:00:13]} Rxg3 {[%emt 0:00:18]} 61. Ra8+ {[%emt 0:00:38]} Kd7 {[%emt 0:01:02]} 62. g8=Q {[%emt 0:00:12]} Rxg8 {[%emt 0:00:23]} 63. Rxg8 {[%emt 0:00:06]} Kd6 {[%emt 0:00:51]} 64. Rd8+ {[%emt 0:00:10]} Kc7 {[%emt 0:00:12]} 65. Rd1 {[%emt 0:00:09]} 1-0

[Event "HUN-ch U8-U18 2019"]
[Site "Balatonlelle"]
[Date "2019.06.23"]
[Round "3.1"]
[White "Markus, Molli Amina"]
[Black "Kovacs, Reka"]
[Result "1-0"]
[ECO "A34"]
[WhiteElo "1755"]
[BlackElo "1318"]
[Annotator "NA"]
[PlyCount "57"]
[EventDate "2019.06.21"]
[EventType "swiss"]
[EventCountry "HUN"]
[SourceTitle "playchess.com"]
[Source "ChessBase"]
[SourceQuality "1"]
[TimeControl "40/5400+30:1800+30"]

1. c4 {[%emt 0:00:11]} c5 {[%emt 0:00:06]} 2. Nc3 {[%emt 0:00:24]} Nf6 {[%emt 0:00:24]} 3. g3 {[%emt 0:00:44]} d5 {[%emt 0:00:22]} 4. cxd5 {[%emt 0:00:37]} Nxd5 {[%emt 0:00:15]} 5. Bg2 {[%emt 0:00:51]} Nc7 {[%emt 0:00:25]} 6. Nf3 {[%emt 0:01:10]} Nc6 {[%emt 0:00:21]} 7. O-O {[%emt 0:01:26]} e5 {[%emt 0:00:28]} 8. d3 {[%emt 0:00:58]} Be7 {[%emt 0:01:06]} 9. Bd2 {[%emt 0:03:49]} O-O {[%emt 0:00:42]} 10. Rc1 {[%emt 0:00:41]} Be6 {[%emt 0:01:00]} 11. Ne4 {[%emt 0:06:06]} b6 {[%emt 0:01:50]} 12. Bc3 {[%emt 0:06:35]} f6 {[%emt 0:04:29]} 13. a3 {[%emt 0:01:22]} Rc8 {[%emt 0:00:49]} 14. Rb1 {[%emt 0:04:09]} Qd7 {[%emt 0:01:31]} 15. b4 {[%emt 0:00:53]} cxb4 {[%emt 0:00:33]} 16. Bxb4 {[%emt 0:01:26]} Nxb4 {[%emt 0:00:50]} 17. axb4 {[%emt 0:00:07]} Bh3 {[%emt 0:00:37]} 18. Qb3+ {[%emt 0:03:25]} Kh8 {[%emt 0:00:56]} 19. b5 {[%emt 0:01:56]} Bxg2 {[%emt 0:00:45]} 20. Kxg2 {[%emt 0:00:04]} Bd6 {[%emt 0:05:04]} 21. Rfc1 {[%emt 0:03:48]} f5 {[%emt 0:01:49]} 22. Nxd6 {[%emt 0:00:57]} Qxd6 {[%emt 0:00:35]} 23. Rc6 {[%emt 0:02:40]} Qe7 {[%emt 0:00:39]} 24. Rbc1 {[%emt 0:02:38]} e4 {[%emt 0:01:22]} 25. Nd4 {[%emt 0:03:28]} f4 {[%emt 0:05:53]} 26. Ne6 {[%emt 0:01:39]} fxg3 {[%emt 0:05:32]} 27. Nxf8 {[%emt 0:08:49]} Qxf8 {[%emt 0:25:53]} 28. hxg3 {[%emt 0:00:28]} Qe7 {[%emt 0:02:10]} 29. Qc4 {[%emt 0:01:04]} 1-0

[Event "HUN-ch U8-U18 2019"]
[Site "Balatonlelle"]
[Date "2019.06.23"]
[Round "3.1"]
[White "Lokos, Viktoria"]
[Black "Lukacs, Anna Kata"]
[Result "0-1"]
[ECO "B10"]
[WhiteElo "1230"]
[BlackElo "1915"]
[Annotator "NA"]
[PlyCount "48"]
[EventDate "2019.06.21"]
[EventType "swiss"]
[EventCountry "HUN"]
[SourceTitle "playchess.com"]
[Source "ChessBase"]
[SourceQuality "1"]
[TimeControl "40/5400+30:1800+30"]

1. e4 {[%emt 0:00:02]} c6 {[%emt 0:00:09]} 2. Nf3 {[%emt 0:00:16]} g6 {[%emt 0:00:12]} 3. g3 {[%emt 0:00:18]} Bg7 {[%emt 0:00:25]} 4. d4 {[%emt 0:00:30]} d5 {[%emt 0:00:16]} 5. exd5 {[%emt 0:01:09]} cxd5 {[%emt 0:00:12]} 6. Bg2 {[%emt 0:01:24]} Nc6 {[%emt 0:02:24]} 7. O-O {[%emt 0:00:48]} Bg4 {[%emt 0:01:12]} 8. Be3 {[%emt 0:01:49]} Qb6 {[%emt 0:06:18]} 9. Nc3 {[%emt 0:08:34]} e6 {[%emt 0:02:49]} 10. h3 {[%emt 0:00:43]} Bxf3 {[%emt 0:02:04]} 11. Bxf3 {[%emt 0:01:19]} Qxb2 {[%emt 0:26:58]} 12. Na4 {[%emt 0:01:24]} Qb4 {[%emt 0:00:49]} 13. c3 {[%emt 0:00:59]} Qe7 {[%emt 0:00:33]} 14. Re1 {[%emt 0:04:16]} Nf6 {[%emt 0:01:27]} 15. Bg5 {[%emt 0:02:18]} Qd6 {[%emt 0:07:20]} 16. Qb3 {[%emt 0:03:39]} O-O {[%emt 0:01:52]} 17. Bf4 {[%emt 0:06:16]} Qe7 {[%emt 0:08:02]} 18. Rab1 {[%emt 0:03:27]} b6 {[%emt 0:01:38]} 19. Qb5 {[%emt 0:01:59]} Qd7 {[%emt 0:01:45]} 20. Rbd1 {[%emt 0:04:33]} Nxd4 {[%emt 0:03:39]} 21. Qd3 {[%emt 0:02:58]} Nxf3+ {[%emt 0:00:25]} 22. Qxf3 {[%emt 0:00:12]} Qxa4 {[%emt 0:00:31]} 23. Be5 {[%emt 0:02:03]} Ne4 {[%emt 0:01:00]} 24. Bxg7 {[%emt 0:01:09]} Kxg7 {[%emt 0:00:12]} 0-1

[Event "HUN-ch U8-U18 2019"]
[Site "Balatonlelle"]
[Date "2019.06.23"]
[Round "3.2"]
[White "Pasti, Anna"]
[Black "Kiss, Eniko"]
[Result "1-0"]
[ECO "B50"]
[WhiteElo "1955"]
[BlackElo "1708"]
[Annotator "NA"]
[PlyCount "47"]
[EventDate "2019.06.21"]
[EventType "swiss"]
[EventCountry "HUN"]
[SourceTitle "playchess.com"]
[Source "ChessBase"]
[SourceQuality "1"]
[TimeControl "40/5400+30:1800+30"]

1. e4 {[%emt 0:00:06]} c5 {[%emt 0:00:09]} 2. Nf3 {[%emt 0:00:06]} d6 {[%emt 0:00:16]} 3. c4 {[%emt 0:00:05]} Nc6 {[%emt 0:00:22]} 4. d4 {[%emt 0:00:08]} cxd4 {[%emt 0:00:16]} 5. Nxd4 {[%emt 0:00:10]} Nf6 {[%emt 0:00:25]} 6. Nc3 {[%emt 0:00:14]} Qb6 {[%emt 0:02:21]} 7. Nb3 {[%emt 0:06:19]} a6 {[%emt 0:05:51]} 8. Be3 {[%emt 0:02:06]} Qc7 {[%emt 0:00:18]} 9. Be2 {[%emt 0:01:08]} g6 {[%emt 0:00:45]} 10. Nd5 {[%emt 0:01:52]} Nxd5 {[%emt 0:01:39]} 11. cxd5 {[%emt 0:00:15]} Ne5 {[%emt 0:00:38]} 12. Rc1 {[%emt 0:00:41]} Qd8 {[%emt 0:01:24]} 13. f4 {[%emt 0:00:12]} Nd7 {[%emt 0:00:30]} 14. Bd4 {[%emt 0:01:28]} Nf6 {[%emt 0:01:21]} 15. g4 {[%emt 0:03:08]} Rg8 {[%emt 0:02:39]} 16. Bf3 {[%emt 0:02:34]} Bg7 {[%emt 0:01:04]} 17. g5 {[%emt 0:01:45]} Nd7 {[%emt 0:00:27]} 18. Bxg7 {[%emt 0:00:43]} Rxg7 {[%emt 0:00:01]} 19. O-O {[%emt 0:00:27]} f6 {[%emt 0:01:21]} 20. Nd4 {[%emt 0:02:04]} fxg5 {[%emt 0:02:38]} 21. Ne6 {[%emt 0:00:45]} Qb6+ {[%emt 0:00:12]} 22. Kh1 {[%emt 0:00:05]} Rf7 {[%emt 0:00:24]} 23. Nc7+ {[%emt 0:00:07]} Kd8 {[%emt 0:00:11]} 24. Nxa8 {[%emt 0:00:05]} 1-0

[Event "HUN-ch U8-U18 2019"]
[Site "Balatonlelle"]
[Date "2019.06.23"]
[Round "3.2"]
[White "Balazs, Sztella Anna"]
[Black "Nandin-Erdene, Davaademberel"]
[Result "0-1"]
[ECO "A11"]
[WhiteElo "1165"]
[BlackElo "1581"]
[Annotator "NA"]
[PlyCount "56"]
[EventDate "2019.06.21"]
[EventType "swiss"]
[EventCountry "HUN"]
[SourceTitle "playchess.com"]
[Source "ChessBase"]
[SourceQuality "1"]
[TimeControl "40/5400+30:1800+30"]

1. c4 {[%emt 0:00:03]} c6 {[%emt 0:01:52]} 2. Nc3 {[%emt 0:00:11]} d5 {[%emt 0:00:17]} 3. cxd5 {[%emt 0:00:16]} cxd5 {[%emt 0:00:06]} 4. Nf3 {[%emt 0:00:22]} Nf6 {[%emt 0:00:11]} 5. g3 {[%emt 0:00:09]} Bf5 {[%emt 0:00:21]} 6. Bg2 {[%emt 0:00:09]} e6 {[%emt 0:00:09]} 7. O-O {[%emt 0:00:34]} Nc6 {[%emt 0:00:23]} 8. d4 {[%emt 0:00:36]} Be7 {[%emt 0:00:23]} 9. Bg5 {[%emt 0:02:04]} h6 {[%emt 0:00:24]} 10. Bf4 {[%emt 0:00:15]} a6 {[%emt 0:00:18]} 11. Qb3 {[%emt 0:01:35]} Na5 {[%emt 0:07:35]} 12. Qd1 {[%emt 0:02:08]} O-O {[%emt 0:00:28]} 13. Rc1 {[%emt 0:01:03]} Rc8 {[%emt 0:02:41]} 14. Nh4 {[%emt 0:02:43]} Be4 {[%emt 0:01:14]} 15. Nxe4 {[%emt 0:00:45]} dxe4 {[%emt 0:00:19]} 16. Rxc8 {[%emt 0:02:23]} Qxc8 {[%emt 0:00:06]} 17. Qd2 {[%emt 0:00:14]} Nc4 {[%emt 0:10:09]} 18. Qc1 {[%emt 0:01:01]} Nh7 {[%emt 0:07:02]} 19. Bxh6 {[%emt 0:01:55]} gxh6 {[%emt 0:02:42]} 20. Qxh6 {[%emt 0:00:18]} Bg5 {[%emt 0:17:48]} 21. Qh5 {[%emt 0:00:55]} Nd6 {[%emt 0:05:44]} 22. f3 {[%emt 0:01:52]} Qc4 {[%emt 0:10:21]} 23. Kh1 {[%emt 0:11:34]} Qxd4 {[%emt 0:05:15]} 24. Qg4 {[%emt 0:00:23]} Qg7 {[%emt 0:02:56]} 25. fxe4 {[%emt 0:00:25]} Nf6 {[%emt 0:01:05]} 26. Qh3 {[%emt 0:02:11]} Nfxe4 {[%emt 0:04:44]} 27. Qg4 {[%emt 0:03:01]} f5 {[%emt 0:03:59]} 28. Qf3 {[%emt 0:00:54]} Nd2 {[%emt 0:00:17]} 0-1

[Event "HUN-ch U8-U18 2019"]
[Site "Balatonlelle"]
[Date "2019.06.23"]
[Round "3.3"]
[White "Koltai, Dora"]
[Black "Juhasz, Judit"]
[Result "0-1"]
[ECO "A48"]
[WhiteElo "1773"]
[BlackElo "1963"]
[Annotator "NA"]
[PlyCount "102"]
[EventDate "2019.06.21"]
[EventType "swiss"]
[EventCountry "HUN"]
[SourceTitle "playchess.com"]
[Source "ChessBase"]
[SourceQuality "1"]
[TimeControl "40/5400+30:1800+30"]

1. d4 {[%emt 0:00:44]} Nf6 {[%emt 0:00:09]} 2. Nf3 {[%emt 0:00:55]} g6 {[%emt 0:00:32]} 3. Bg5 {[%emt 0:01:30]} Bg7 {[%emt 0:00:21]} 4. c3 {[%emt 0:01:22]} O-O {[%emt 0:01:36]} 5. Nbd2 {[%emt 0:01:08]} d6 {[%emt 0:02:35]} 6. e4 {[%emt 0:01:20]} Bg4 {[%emt 0:01:16]} 7. Bc4 {[%emt 0:13:05]} Nbd7 {[%emt 0:08:55]} 8. O-O {[%emt 0:05:23]} e5 {[%emt 0:02:25]} 9. dxe5 {[%emt 0:10:17]} Nxe5 {[%emt 0:01:31]} 10. Be2 {[%emt 0:06:00]} Bxf3 {[%emt 0:10:27]} 11. Nxf3 {[%emt 0:03:20]} h6 {[%emt 0:02:08]} 12. Bxf6 {[%emt 0:01:56]} Nxf3+ {[%emt 0:02:57]} 13. Bxf3 {[%emt 0:00:33]} Qxf6 {[%emt 0:00:11]} 14. Qb3 {[%emt 0:06:33]} Rab8 {[%emt 0:01:48]} 15. Rad1 {[%emt 0:02:56]} Qf4 {[%emt 0:01:22]} 16. Rd3 {[%emt 0:03:45]} Rfe8 {[%emt 0:04:26]} 17. g3 {[%emt 0:04:02]} Qf6 {[%emt 0:03:37]} 18. Bg2 {[%emt 0:02:15]} b5 {[%emt 0:00:55]} 19. Qa3 {[%emt 0:03:13]} Qe6 {[%emt 0:03:51]} 20. Rd5 {[%emt 0:02:02]} Rb7 {[%emt 0:09:35]} 21. Rfd1 {[%emt 0:07:33]} Reb8 {[%emt 0:13:55]} 22. b4 {[%emt 0:09:16]} Qe8 {[%emt 0:06:33]} 23. R5d3 {[%emt 0:03:23]} Rb6 {[%emt 0:02:47]} 24. Qb3 {[%emt 0:01:56]} Qe6 {[%emt 0:01:33]} 25. Qxe6 {[%emt 0:02:32]} fxe6 {[%emt 0:00:23]} 26. f4 {[%emt 0:01:47]} Kf7 {[%emt 0:05:23]} 27. Kf2 {[%emt 0:01:36]} Ra6 {[%emt 0:00:14]} 28. R1d2 {[%emt 0:00:43]} Ra3 {[%emt 0:00:19]} 29. Rc2 {[%emt 0:01:31]} Rb6 {[%emt 0:03:27]} 30. Bf1 {[%emt 0:01:41]} Rba6 {[%emt 0:04:52]} 31. e5 {[%emt 0:00:36]} Rxa2 {[%emt 0:00:29]} 32. Re2 {[%emt 0:00:31]} Ke7 {[%emt 0:01:39]} 33. exd6+ {[%emt 0:00:24]} cxd6 {[%emt 0:00:08]} 34. Rde3 {[%emt 0:00:35]} Rxe2+ {[%emt 0:00:29]} 35. Bxe2 {[%emt 0:00:10]} Ra3 {[%emt 0:02:19]} 36. Bxb5 {[%emt 0:00:42]} Bxc3 {[%emt 0:00:30]} 37. Ke2 {[%emt 0:00:37]} Ra2+ {[%emt 0:00:17]} 38. Kd3 {[%emt 0:00:30]} Ra3 {[%emt 0:01:43]} 39. Kc4 {[%emt 0:00:26]} d5+ {[%emt 0:00:28]} 40. Kd3 {[%emt 0:00:00]} Bxb4+ {[%emt 0:00:00]} 41. Ke2 {[%emt 0:01:04]} Rxe3+ {[%emt 0:01:32]} 42. Kxe3 {[%emt 0:00:02]} Bc3 {[%emt 0:00:39]} 43. Kd3 {[%emt 0:01:00]} Bf6 {[%emt 0:00:43]} 44. h3 {[%emt 0:02:15]} g5 {[%emt 0:04:56]} 45. fxg5 {[%emt 0:01:09]} Bxg5 {[%emt 0:00:56]} 46. g4 {[%emt 0:01:53]} Kd6 {[%emt 0:00:19]} 47. Ba4 {[%emt 0:01:18]} Kc5 {[%emt 0:00:31]} 48. Bd7 {[%emt 0:00:44]} e5 {[%emt 0:00:06]} 49. Be6 {[%emt 0:00:18]} e4+ {[%emt 0:00:18]} 50. Ke2 {[%emt 0:00:21]} d4 {[%emt 0:00:14]} 51. Bf5 {[%emt 0:00:14]} d3+ {[%emt 0:00:11]} 0-1